Cogmind - Beta 14 @@@ ROGUE MODE // 2025.04.22 @ 20:51:25 Player: Player Result: Destroyed by G-47 Trooper with Particle Gun Performance ------------- Evolutions (0) 0 Regions Visited (1) 200 Robots Destroyed (18) 90 Value Destroyed (311) 311 Prototype IDs (0) 0 Alien Tech Used (0) 0 Bonus (0) 0 TOTAL SCORE: 601 Bonus ------- None Cogmind --------- Core Integrity 0/250 Matter 300/300 Energy 100/100 System Corruption 1% Temperature Hot (244) Movement Core (150) Ox2 Location -10/Materials Parts ------- > --- POWER (1) -------- (None) > --- PROPULSION (2) --- (None) > --- UTILITY (2) ------ Small Storage Unit Seismic Detector > --- WEAPON (2) ------- Medium Laser > --- INVENTORY (8) ---- Light Ion Engine Light Ion Engine Improved Heat Sink Sensor Array Improved Terrain Scanner Seismic Detector Tractor Beam Peak State ------------ > --- POWER ------------ Ion Engine > --- PROPULSION ------- Light Treads Light Treads > --- UTILITY ---------- Small Storage Unit Seismic Detector > --- WEAPON ----------- Particle Gun Assault Rifle > --- INVENTORY -------- Light Ion Engine Light Ion Engine Improved Heat Sink Sensor Array Improved Terrain Scanner Seismic Detector Tractor Beam Medium Laser [Rating: 9] Favorites ----------- Power Ion Engine Engine Ion Engine Propulsion Light Treads Treads Light Treads Utility Small Storage Unit Device Seismic Detector Storage Small Storage Unit Weapon Assault Rifle Energy Gun Medium Laser Ballistic Gun Assault Rifle Build | -11 -10 ------- Run | Yrd Mat Slots Evolved . | . . Power . | . . Propulsion . | . . Utility . | . . Weapon . | . . Parts Attached 11 | 8 3 Power 1 | 1 . Engine 1 | 1 . Core . | . . Reactor . | . . Propulsion 2 | 2 . Treads 2 | 2 . Leg . | . . Wheel . | . . Hover . | . . Flight . | . . Utility 3 | 2 1 Device 2 | 1 1 Storage 1 | 1 . Processor . | . . Hackware . | . . Protection . | . . Artifact . | . . Weapon 5 | 3 2 Energy Gun 4 | 2 2 Energy Cannon . | . . Ballistic Gun 1 | 1 . Ballistic Cannon . | . . Launcher . | . . Special Weapon . | . . Impact Weapon . | . . Slashing Weapon . | . . Piercing Weapon . | . . Special Melee Weapon . | . . Unidentified Prototypes . | . . Parts Lost 6 | . 6 Power 1 | . 1 Propulsion 2 | . 2 Utility 1 | . 1 Weapon 2 | . 2 Highest Loss Streak 5 | . 5 To Critical Strikes . | . . Average Slot Usage (%) 94 | . 94 Engine 13 | . 13 Treads 25 | . 25 Device 13 | . 13 Storage 14 | . 14 Energy Gun 14 | . 14 Ballistic Gun 12 | . 12 Peak Build Rating 9 | 8 9 Average Rating 7 | 6 7 On Entrance 4 | . 8 Naked Turns . | . . Heaviest Build 16 | 15 16 Greatest Support 40 | 40 40 Greatest Overweight (x) . | . . Average Overweight (x) . | . . Largest Inventory Capacity 8 | 8 8 Average Capacity 7 | 7 8 Most Carried 8 | 8 8 Average Carried 6 | 4 7 Final Capacity 8 | 8 8 Final Carried 8 | 8 7 Class Distribution -------------------- 100% | Mutant Dominant Class ---------------- Mutant | -10/Materials Resources | -11 -10 ----------- Run | Yrd Mat Matter Collected 421 | 319 102 Remotely . | . . Salvage Created 598 | 190 408 Parts 39 | 16 23 Haulers Intercepted . | . . Recyclers Shooed 2 | 1 1 Parts Field Recycled . | . . Retrieved Matter . | . . Parts Self-Destructed . | . . Prevented . | . . Kills | -11 -10 ------- Run | Yrd Mat Combat Hostiles Destroyed 9 | . 9 Guns 9 | . 9 Classes Destroyed 6 | 2 4 Worker 1 | . 1 Tunneler 5 | 5 . Recycler 2 | 1 1 Watcher 1 | . 1 Swarmer 3 | . 3 Grunt 6 | . 6 Best Kill Streak 4 | 2 4 Combat Bots Only 3 | . 3 Max Kills in Single Turn 2 | 1 2 Gunslinging 1 | . 1 Exploded . | . . Melee . | . . Uniques/NPCs Destroyed . | . . Combat | -11 -10 -------- Run | Yrd Mat Hostile Shots Fired 87 | . 87 Missed 16 | . 16 Damage Taken 925 | . 925 Core 258 | . 258 Absorbed by Shields . | . . Core Remaining (%) 100 | 100 . Volleys Fired 57 | 14 43 Largest 2 | 2 2 Hottest 115 | 100 115 Shots Fired 109 | 28 81 Gun 109 | 28 81 Cannon . | . . Launcher . | . . Special . | . . Kinetic 50 | 13 37 Thermal 59 | 15 44 Explosive . | . . Electromagnetic . | . . Robot Hit Streak 6 | 6 6 Robot Miss Streak 8 | 2 8 Penetration Max . | . . Secondary Targets 1 | . 1 Max Gunslinging Chain 1 | . 1 Shots Hit Robots 64 | 17 47 Core Hits 30 | 7 23 Critical Kills . | . . Critical Parts Destroyed 1 | . 1 Critical Strikes 5 | 2 3 Burn 4 | 2 2 Destroy 1 | . 1 Melee Attacks . | . . Impact . | . . Slashing . | . . Piercing . | . . Sneak Attacks . | . . Combat Hostiles . | . . Follow-up Attacks . | . . Damage Inflicted 916 | 208 708 Guns 908 | 208 700 Cannons . | . . Explosions . | . . Melee . | . . Ramming 8 | . 8 Kinetic 412 | 109 303 Thermal 496 | 99 397 Explosive . | . . Electromagnetic . | . . Impact . | . . Slashing . | . . Piercing . | . . Highest Corruption 1 | . 1 Average Corruption 1 | . 1 Corruption Purged . | . . Corruption Blocked . | . . Overload Shots . | . . Overflow Damage . | . . Projectiles . | . . Explosions . | . . Melee . | . . Knockbacks . | . . Impact . | . . Kinetic . | . . Secondary . | . . Self-Inflicted Damage 2 | . 2 Shots . | . . Rammed 9 | . 9 Targets Rammed 9 | . 9 Kicked . | . . Crushed . | . . Highest Temperature 611 | 45 611 Average Temperature 148 | 16 185 Received Heat Transfer 489 | . 489 Effects 11 | . 11 Interference 4 | . 4 Short Circuit 1 | . 1 Damage (minor) 2 | . 2 Damage (major) 4 | . 4 Siege Activations . | . . Robots Corrupted . | . . Combat Hostiles . | . . Parts Fried . | . . Impact Corruptions . | . . Robots Melted . | . . Combat Hostiles . | . . Parts Melted 6 | 2 4 Heat Transferred 1665 | 444 1221 Parts Sabotaged . | . . Parts Stolen . | . . Parts Stripped . | . . Power Chain Reactions . | . . Alert | -11 -10 ------- Run | Yrd Mat Peak Influence 296 | 30 296 Initial 19 | . 19 Average 111 | 15 184 Maximum Alert Level 1 | . 1 Low Security (%) 76 | 100 58 Level 1 23 | . 41 Level 2 . | . . Level 3 . | . . Level 4 . | . . Level 5 . | . . High Security . | . . Max Security . | . . Squads Dispatched 2 | . 2 Investigation 1 | . 1 Extermination . | . . Reinforcement 1 | . 1 Assault . | . . Garrison . | . . Intercept . | . . Searches Triggered . | . . Construction Impeded . | . . Haulers Reinforced . | . . Active Scanning Responses . | . . Cargo Convoy Interrupts . | . . Stealth | -11 -10 --------- Run | Yrd Mat Distress Signals 1 | . 1 Communications Jammed . | . . Distress Signals . | . . Times Spotted 19 | . 19 Peak Tracking Total 4 | . 4 Tactical Retreats 1 | . 1 Traps | -11 -10 ------- Run | Yrd Mat Traps Triggered 1 | . 1 Indirectly . | . . Trap Hack Attempts . | . . Triggered . | . . Disarmed . | . . Reprogrammed . | . . Reused . | . . Traps Extracted . | . . Installed . | . . Triggered . | . . Machines | -11 -10 ---------- Run | Yrd Mat Machines Disabled . | . . Max in Single Turn . | . . Machines Repaired . | . . Machines Dismantled . | . . Machines Sabotaged . | . . Overloaded Fab Kills . | . . Hacking | -11 -10 --------- Run | Yrd Mat Machines Accessed 1 | . 1 Terminals 1 | . 1 Fabricators . | . . Repair Stations . | . . Recycling Units . | . . Scanalyzers . | . . Garrison Access . | . . Total Hacks 1 | . 1 Successful . | . . Failed 1 | . 1 Catastrophic . | . . Database Lockouts . | . . Manual 1 | . 1 Terminals 1 | . 1 Fabricators . | . . Repair Stations . | . . Recycling Units . | . . Scanalyzers . | . . Garrison Access . | . . Terminal Hacks . | . . Fabricator Hacks . | . . Repair Station Hacks . | . . Recycling Unit Hacks . | . . Scanalyzer . | . . Garrison Access Hacks . | . . Unauthorized Hacks . | . . Terminals . | . . Fabricators . | . . Repair Stations . | . . Recycling Units . | . . Scanalyzers . | . . Garrison Access . | . . Data Cores Recovered . | . . Used . | . . Hacking Detections 1 | . 1 Full Trace Events . | . . Feedback Events . | . . Feedback Blocked . | . . Robot Schematics Acquired . | . . Robots Built . | . . Authchips . | . . Time . | . . Total Robot Build Rating . | . . Part Schematics Acquired . | . . Parts Built . | . . Authchips . | . . Time . | . . Total Part Build Rating . | . . Parts Repaired . | . . Time . | . . Parts Recycled . | . . Recycled Matter . | . . Retrieved Matter . | . . Retrieved Components . | . . Parts Scanalyzed . | . . Part Schematics Acquired . | . . Parts Damaged . | . . Bothacking | -11 -10 ------------ Run | Yrd Mat Used RIF Installer . | . . Robots Hacked . | . . Non-combat . | . . Combat . | . . Robot Hacks Applied . | . . Relay Couplers Released . | . . Fabnet Peak Effective % . | . . Robots Rewired . | . . Allies Hacked . | . . Hacks Repelled . | . . Allies | -11 -10 -------- Run | Yrd Mat Total Allies . | . . Largest Group . | . . Highest-Rated Group . | . . Highest-Rated Ally . | . . Total Orders . | . . Ally Attacks . | . . Total Damage . | . . Kills . | . . Allies Corrupted . | . . Allies Melted . | . . Intel | -11 -10 ------- Run | Yrd Mat Robot Analysis Total . | . . Derelict Logs Recovered . | . . Drone Launches . | . . Drone Recoveries . | . . Exploration | -11 -10 ------------- Run | Yrd Mat Turns Passed 569 | 245 324 Spaces Moved 216 | 117 99 Core 12 | 12 . Treads 204 | 105 99 Legs . | . . Wheels . | . . Hover . | . . Flight . | . . Fastest Speed 50 | 50 160 Average Speed 153 | 148 160 Slowest Speed 160 | 160 160 Overloaded Moves . | . . Propulsion Burnouts . | . . Robots Hopped . | . . Cave-ins Triggered . | . . Exploration Rate (%) 16 | 7 25 Regions Visited 1 Branch Regions . Pre-discovered Areas . | . . Known Exits Taken . | . . Unknown Exits Taken 1 | 1 . Scrap Searched . | . . Spaces Dug . | . . Terrain Destroyed . | . . Melee . | . . Projectile . | . . AOE . | . . Terrain Rammed . | . . Walls Destroyed . | . . Machines Disabled . | . . Actions | -11 -10 --------- Run | Yrd Mat Total 337 | 158 179 Wait 26 | 7 19 Move 215 | 116 99 Hop . | . . Pick Up 15 | 12 3 Fast Attach 5 | 4 1 Attach 5 | 3 2 Detach . | . . Swap 1 | 1 . Drop 4 | 1 3 Fire 57 | 14 43 Melee . | . . Ram 9 | . 9 Kick . | . . Crush . | . . Escape Stasis . | . . Rewire . | . . Trap . | . . Miscellaneous . | . . Route ------- -11/Scrapyard -10/Materials (discovered 1 exit: [*Mat]) History --------- Turn | Location | Event 9 | -11/Scrapyard | Discovered new exit (range 15) 246 | -11/Scrapyard | Entered Materials 309 | -10/Materials | Build established: Mutant 458 | -10/Materials | Discovered new exit (range 13) 489 | -10/Materials | Core integrity fell below 50% 557 | -10/Materials | Core integrity fell below 20% 570 | -10/Materials | Destroyed by G-47 Trooper with Particle Gun Last Messages --------------- 00550_ Overheating: System interference. 00550_ Med. Laser temporarily disabled. 00550_ Particle Gun destroyed. 00551_ Overheating: Seismic Detector damaged (-4). 00551_ K-01 Serf collects debris. 00554_ Lgt. Treads destroyed. 00555_ Slammed into G-47 Trooper. 00556_ Acquired 15 matter. 00557_ Slammed into G-47 Trooper. 00558_ Broken Ion Engine destroyed. 00559_ K-01 Serf collects debris. 00560_ Overheating: Seismic Detector damaged (-5). 00560_ Slammed into G-47 Trooper. 00564_ Destabilizing: System corrupted (+1). 00566_ Slammed into G-47 Trooper. 00566_ K-01 Serf collects debris. 00567_ Slammed into G-47 Trooper. 00569_ K-01 Serf collects debris. Map ----- +----------------------------------------------------+ | ???????????????? #???????????????????????????????? | | ???????????????? #???????????????????????????????? | | ???????????????? #???????????????????????????????? | | #########??????? #???????????????????????????????? | | """ ##### #????#??????????????????????????? | | """"" # ####T###+##?????????????????????? | | """"" # ????????????????????? | | """"" # T ????????????????????? | | """ # = ????????????????????? | | "T" # #### #?????????????????????? | | """ ## ##???????????????????????????????? | | ######+###### #?????????????????#??????????????? | | ##### #???????????????? #??????????????? | | # #???????????????? #??????????????? | | %# """ #??????????????? #??????????????? | | +% """ #??????????????? #??????????????? | | #% """ #?????????????? #??????????????? | | * # %############### #??????????????? | | ##### #??????????????? | | # u #??????????????? | | # #??????????????? | | # #??????????????? | | #### % #??????????????? | | ???# k% ########??????????????? | | ???# %g#############+##??????? | | ???# """ """ """ @%!%=* u ???? | | ???# """ """ "" %%%== ! ???? | | ???# """ """ "" %% ???? | | ???# =%### #######?????? | | ???# =### #???????????? | | ???# #?##################?# """ #???????????? | | ???+ #????????????????????# """ #???????????? | | ???# #???????????????????? """ #???????????? | | ???# #???????????????????? +???????????? | | ???? ???????????????????? ? #???????????? | | ???? ???????????????????? ####??##???????????? | | ??????????????????????????? ???????????????????? | | ??????????????????????????? < ???????????????????? | | ??????????????????????????? ???????????????????? | | ??????????????????????????####???????????????????? | | ?????????????????????????????????????????????????? | | ?????????????????????????????????????????????????? | | ?????????????????????????????????????????????????? | | ?????????????????????????????????????????????????? | | ?????????????????????????????????????????????????? | | ?????????????????????????????????????????????????? | | ?????????????????????????????????????????????????? | | ?????????????????????????????????????????????????? | | ?????????????????????????????????????????????????? | | ?????????????????????????????????????????????????? | +----------------------------------------------------+ Best States ------------- Heat Dissipation 25 Energy Generation 10 Energy Capacity 250 Matter Stores 300 Matter Capacity 300 Sight Range 16 Terrain Scan Density 10 Evasion (%) 50 Recoil Reduction 2 Item Schematics ----------------- None Robot Schematics ------------------ None Fabricated ------------ Nothing Alien Tech Used ----------------- None Achievements -------------- None Challenges ------------ None Game ------ Seed FrostCompanionAutocannon Manual? 0 Play Time 00:09:22 Cumulative 100.9 hours Start 2025.04.22 @ 20:40:37 End 2025.04.22 @ 20:51:25 Sessions 1 Manual Loads 0 Difficulty Rogue Special Mode None Game No. 76 Rogue 76 Adventurer 0 Explorer 0 Win Type - Total 1 Types 1/0/0/0/0/0/0/0/0 Lore% 8 Gallery% 40 Achievement% 28 Wizard Run 0 Options --------- Layout 1 ASCII 0 Keyboard 0 Movement Mouse Keybinds 0 Fullscreen 1 Font 24/Smallcaps Map View 50x35 Zoom Use 0% Tactical HUD 1 Map Filters NONE Filters NONE Steam 1 RUN: 0084f9d9-b282-4b0e-ba52-47e717377f31